bitfinex/quotes_BTCUSD_20260215
["timestamp","ask_amount","ask_price","bid_price","bid_amount"]
[1771162054784,0.00044,69406.0,69385.0,0.0003652]
[1771162055033,0.12669055,69392.0,69391.0,1e-08]
[1771162055214,4e-05,69402.0,69391.0,1e-08]
[1771162055215,0.07204507,69401.0,69391.0,1e-08]
[1771162055506,0.05467614,69402.0,69391.0,1e-08]
[1771162055708,0.05463614,69401.0,69391.0,1e-08]
[1771162055855,4e-05,69402.0,69391.0,1e-08]
[1771162056052,0.07205251,69394.0,69391.0,1e-08]
[1771162057337,0.11294875,69393.0,69391.0,1e-08]
[1771162057590,0.0408946,69392.0,69391.0,1e-08]
[1771162057795,0.11294901,69392.0,69391.0,1e-08]
[1771162058296,0.07205753,69389.0,69385.0,0.0003652]
[1771162058473,0.0408946,69388.0,69385.0,0.00049483]
[1771162058680,0.07205874,69388.0,69385.0,0.00049483]
[1771162058886,0.09666017,69388.0,69385.0,0.00049483]
[1771162059303,0.02460143,69387.0,69375.0,0.34484]
[1771162059516,0.07206479,69383.0,69375.0,0.00012987]
[1771162059714,0.07206479,69383.0,69376.0,0.07272465]
[1771162059922,0.02460143,69386.0,69377.0,0.07206984]
[1771162059923,0.07206194,69385.0,69377.0,0.07206984]
[1771162060346,0.07206273,69384.0,69377.0,0.07206984]
[1771162060595,0.02460143,69385.0,69376.0,0.07272465]
[1771162060810,0.07206672,69381.0,69376.0,0.07272465]
[1771162061477,0.07206443,69383.0,69376.0,0.07272465]
[1771162061680,0.07206643,69381.0,69376.0,0.07272465]
[1771162062106,0.09666829,69382.0,69376.0,0.07272465]
[1771162062714,0.072066,69381.0,69376.0,0.07272465]
[1771162062949,0.07206686,69382.0,69376.0,0.07272465]
[1771162063173,0.09519971,69382.0,69376.0,0.07272465]
[1771162063376,0.09637302,69381.0,69377.0,0.0002]
[1771162065756,0.07206762,69380.0,69375.0,0.00012987]
[1771162065920,0.02430642,69379.0,69375.0,0.00012987]
[1771162067421,0.07206604,69381.0,69375.0,0.00012987]
[1771162067550,0.02430642,69389.0,69376.0,0.07272465]
[1771162067756,0.02430642,69389.0,69379.0,0.07206706]
[1771162068003,0.09636498,69389.0,69377.0,0.07206909]
[1771162068164,0.02430642,69389.0,69376.0,0.07272465]
[1771162068552,0.25102648,69386.0,69376.0,0.07272465]
[1771162068774,0.07206357,69384.0,69377.0,0.07206931]
[1771162069035,0.07206357,69384.0,69375.0,0.00012987]
[1771162069256,0.0720645,69383.0,69376.0,0.07272465]
[1771162069430,0.07206376,69383.0,69376.0,0.07272465]
[1771162069853,0.07206137,69386.0,69376.0,0.07272465]
[1771162070047,0.07206153,69387.0,69377.0,0.07206999]
[1771162070275,0.07206153,69387.0,69378.0,0.07206811]
[1771162070489,0.02430642,69389.0,69382.0,0.07206392]
[1771162070490,0.09636439,69389.0,69382.0,0.07206392]
[1771162070613,0.07205797,69389.0,69382.0,0.07206392]
[1771162072106,4e-05,69394.0,69383.0,0.36097554]
[1771162072259,4e-05,69394.0,69390.0,0.07205635]
[1771162072564,0.07209322,69394.0,69386.0,0.07206064]
[1771162072903,4e-05,69394.0,69391.0,0.07205523]
[1771162073112,4e-05,69394.0,69390.0,0.07205625]
[1771162073113,0.00044,69394.0,69390.0,0.07205625]
[1771162073314,0.00044,69394.0,69390.0,0.07193625]
[1771162073315,4e-05,69392.0,69390.0,0.07193625]
[1771162075656,4e-05,69392.0,69391.0,0.07205545]
[1771162075811,4e-05,69398.0,69394.0,0.07205191]
[1771162076019,4e-05,69398.0,69395.0,0.0720512]
[1771162076215,4e-05,69398.0,69397.0,0.07204922]
[1771162076415,4e-05,69398.0,69395.0,0.07205077]
[1771162076416,4e-05,69404.0,69398.0,0.07204725]
[1771162076873,4e-05,69404.0,69399.0,0.07204661]
[1771162077428,4e-05,69404.0,69399.0,0.14477126]
[1771162077629,4e-05,69404.0,69399.0,0.07272465]
[1771162078083,4e-05,69404.0,69399.0,0.14477176]
[1771162079049,4e-05,69404.0,69399.0,0.07272465]
[1771162079289,4e-05,69404.0,69399.0,0.14477151]
[1771162079481,4e-05,69404.0,69402.0,0.07204324]
[1771162079797,4e-05,69404.0,69399.0,0.14477141]
[1771162079995,4e-05,69404.0,69399.0,0.07272465]
[1771162080583,0.09638906,69404.0,69399.0,0.07372465]
[1771162080984,0.02434642,69404.0,69399.0,0.07272465]
[1771162082010,0.09638855,69404.0,69397.0,0.07204882]
[1771162082169,0.09638855,69404.0,69398.0,0.07272465]
[1771162082393,4e-05,69404.0,69398.0,0.07272465]
[1771162082612,4e-05,69404.0,69401.0,0.07204438]
[1771162082820,0.00044,69404.0,69401.0,0.07204438]
[1771162083276,0.00044,69404.0,69400.0,0.07204578]
[1771162083480,0.00044,69404.0,69401.0,0.07204502]
[1771162083856,0.09634345,69409.0,69398.0,0.07272465]
[1771162083857,4e-05,69412.0,69402.0,0.07272465]
[1771162084064,0.0005297,69411.0,69407.0,0.07203818]
[1771162084272,0.0005297,69411.0,69408.0,0.07203708]
[1771162084697,0.07202919,69417.0,69409.0,0.07203651]
[1771162085311,0.0004,69418.0,69409.0,0.2651001]
[1771162085537,0.0720302,69416.0,69409.0,0.33713613]
[1771162085869,0.07242766,69418.0,69409.0,0.2651001]
[1771162086048,0.07202983,69416.0,69409.0,0.33713599]
[1771162086246,0.07203077,69415.0,69408.0,0.16744401]
[1771162086475,0.07203164,69414.0,69408.0,0.09540656]
[1771162086625,0.07203164,69414.0,69407.0,0.07203876]
[1771162086836,0.07203164,69414.0,69408.0,0.07272465]
[1771162087035,0.07203085,69415.0,69408.0,0.14476243]
[1771162088252,4e-05,69410.0,69408.0,0.14476243]
[1771162088453,4e-05,69410.0,69408.0,0.07203778]
[1771162088658,4e-05,69410.0,69409.0,0.07272465]
[1771162089024,0.02444611,69410.0,69406.0,0.07203891]
[1771162089214,0.00013969,69410.0,69406.0,0.07203891]
[1771162089443,0.00017969,69410.0,69374.0,0.03234816]
[1771162089640,0.00017969,69410.0,69360.0,0.08037877]
[1771162089641,0.07204743,69399.0,69382.0,0.0002]
[1771162089838,0.0720437,69403.0,69395.0,0.07205128]
[1771162090051,0.0720437,69403.0,69396.0,0.07205011]
[1771162090268,0.00017969,69410.0,69392.0,0.2651001]
[1771162090481,0.00017969,69410.0,69408.0,0.07203752]
[1771162090741,1e-08,69413.0,69412.0,0.07203365]
[1771162090949,1e-08,69413.0,69409.0,0.07203676]
[1771162091164,1e-08,69413.0,69401.0,0.02268191]
[1771162091369,1e-08,69413.0,69408.0,0.07203779]
[1771162091574,0.02430642,69412.0,69408.0,0.07203779]
[1771162091824,0.07203376,69412.0,69404.0,0.07204121]
[1771162092059,0.02430642,69411.0,69404.0,0.07204121]
[1771162092517,0.02430642,69411.0,69405.0,0.07204084]
[1771162093491,1e-08,69413.0,69412.0,0.07203365]
[1771162093758,1e-08,69413.0,69410.0,0.06253761]
[1771162094187,1e-08,69413.0,69411.0,0.07203469]
[1771162094687,1e-08,69413.0,69412.0,0.07203365]
[1771162095175,1e-08,69413.0,69411.0,0.07203469]
[1771162095645,1e-08,69413.0,69412.0,0.07203365]
[1771162096467,1e-08,69413.0,69411.0,0.07203457]
[1771162096887,1e-08,69413.0,69412.0,0.07203365]
[1771162098803,1e-08,69413.0,69411.0,0.07203457]
[1771162099045,1e-08,69413.0,69412.0,0.07203365]
[1771162099256,1e-08,69413.0,69400.0,0.28825779]
[1771162099463,1e-08,69413.0,69410.0,0.07203475]
[1771162099667,1e-08,69413.0,69408.0,0.0002]
[1771162099908,4e-05,69410.0,69374.0,0.03234816]
[1771162100126,4e-05,69410.0,69360.0,0.11037877]
[1771162100127,0.0720715,69376.0,69375.0,9.969e-05]
[1771162100337,0.03234816,69405.0,69360.0,0.08037877]
[1771162100338,0.07208252,69365.0,69360.0,0.08037877]
[1771162100550,0.0720831,69365.0,69361.0,0.1521615]
[1771162100758,0.07208352,69364.0,69361.0,0.1521615]
[1771162100988,0.07207829,69370.0,69361.0,0.1521615]
[1771162101191,0.07208232,69366.0,69361.0,0.1521615]
[1771162101825,0.02270986,69374.0,69361.0,0.1521615]
[1771162102036,0.05353464,69367.0,69361.0,0.1521615]
[1771162102252,0.07208147,69366.0,69361.0,0.1305214]
[1771162102458,0.05353464,69367.0,69361.0,0.1305214]
[1771162103115,0.07208142,69366.0,69361.0,0.1305214]
[1771162103320,4e-05,69362.0,69361.0,0.1304414]
[1771162104619,4e-05,69362.0,69354.0,0.0002745]
[1771162104621,0.0711519,69323.0,69287.0,0.57764567]
[1771162104835,1.44179474,69358.0,69287.0,0.57764567]
[1771162104836,1.44179474,69358.0,69289.0,0.00043235]
[1771162104837,0.02287506,69318.0,69289.0,0.00043235]
[1771162105022,0.26800606,69315.0,69273.0,0.54969844]
[1771162105156,0.26800606,69314.0,69274.0,0.25134953]
[1771162105357,0.000432,69315.0,69275.0,0.25134953]
[1771162105358,0.02270986,69296.0,69275.0,0.25134953]
[1771162105570,0.26800606,69295.0,69275.0,0.25134953]
[1771162105774,0.02270986,69294.0,69276.0,0.54969844]
[1771162106047,0.02270986,69293.0,69276.0,0.54969844]
[1771162106305,0.26800606,69302.0,69278.0,0.07217298]
[1771162106517,0.26800606,69302.0,69276.0,0.54969844]
[1771162106518,0.26800606,69302.0,69288.0,0.07216229]
[1771162106727,0.02270986,69301.0,69283.0,0.07216777]
[1771162106938,0.02270986,69315.0,69289.0,0.34488]
[1771162107141,0.02270986,69315.0,69291.0,0.07215944]
[1771162107142,0.07213549,69314.0,69291.0,0.07215944]
[1771162107370,0.0001652,69314.0,69304.0,0.07214563]
[1771162107575,0.0001652,69314.0,69308.0,0.07214089]
[1771162107792,0.0001652,69314.0,69292.0,0.02252987]
[1771162107995,0.0001652,69314.0,69305.0,0.25134953]
[1771162108206,0.0001652,69314.0,69307.0,0.0721418]
[1771162108420,0.0001652,69314.0,69306.0,0.07214382]
[1771162108421,0.02270986,69323.0,69306.0,0.54969844]
[1771162108655,0.0003085,69330.0,69262.0,0.1732549]
[1771162108656,0.0003085,69330.0,69323.0,0.07212557]
[1771162108864,0.0003085,69330.0,69319.0,0.07213007]
[1771162109101,0.03335061,69341.0,69318.0,0.07213072]
[1771162109304,0.57673156,69362.0,69315.0,0.28853748]
[1771162109305,0.02270986,69358.0,69321.0,0.25134953]
[1771162109513,4e-05,69362.0,69321.0,0.25134953]
[1771162109514,0.26800606,69360.0,69321.0,0.25134953]
[1771162109718,0.09480709,69351.0,69331.0,0.28846962]
[1771162109930,0.09480711,69351.0,69340.0,0.07210831]
[1771162110360,0.28834913,69361.0,69329.0,0.54969844]
[1771162110563,0.28834913,69361.0,69344.0,0.07210395]
[1771162110564,0.07209382,69355.0,69344.0,0.07210395]
[1771162110979,0.07209486,69354.0,69341.0,0.07210646]
[1771162111195,0.07209486,69354.0,69332.0,0.28846568]
[1771162111196,0.0384,69360.0,69315.0,0.0001697]
[1771162111413,0.07211799,69331.0,69319.0,0.0721293]
[1771162111664,0.02270986,69334.0,69315.0,0.29012828]
[1771162111870,0.07212763,69322.0,69319.0,0.0001298]
[1771162112078,0.07212578,69324.0,69319.0,0.0001298]
[1771162112286,0.07212583,69324.0,69319.0,0.0001298]
[1771162112497,0.07212639,69323.0,69319.0,0.0001298]
[1771162112688,0.02270986,69333.0,69319.0,0.0001298]
[1771162112689,0.07212515,69324.0,69319.0,0.0001298]
[1771162113285,0.07212264,69327.0,69319.0,0.0001298]
[1771162113286,0.07212301,69326.0,69319.0,0.0001298]
[1771162113460,0.07212264,69327.0,69314.0,0.3620933]
[1771162113461,0.07212454,69325.0,69314.0,0.07213472]
[1771162113859,0.07212575,69324.0,69314.0,0.26152545]
[1771162114656,0.02270986,69333.0,69314.0,0.26152545]
[1771162115059,0.07212347,69326.0,69316.0,0.26139565]
[1771162115390,0.00081013,69324.0,69316.0,0.26139565]
[1771162115822,0.07211938,69330.0,69316.0,0.26139565]
[1771162116015,0.02270986,69345.0,69314.0,0.0001298]
[1771162116215,0.07211477,69334.0,69324.0,0.07212405]
[1771162116423,0.07211355,69336.0,69326.0,0.26139565]
[1771162116624,0.07211413,69335.0,69326.0,0.26139565]
[1771162117087,0.07211616,69333.0,69326.0,0.26139565]
[1771162118130,0.07211299,69336.0,69326.0,0.33351845]
[1771162118351,4e-05,69332.0,69328.0,0.07212043]
[1771162118543,4e-05,69332.0,69326.0,0.0721228]
[1771162118770,0.07215283,69336.0,69326.0,0.32349645]
[1771162118980,4e-05,69336.0,69327.0,0.07212197]
[1771162119204,4e-05,69336.0,69330.0,0.07211802]
[1771162120265,4e-05,69336.0,69328.0,0.07212078]
[1771162120472,4e-05,69336.0,69327.0,0.32349354]
[1771162120473,4e-05,69336.0,69329.0,0.07211973]
[1771162120686,4e-05,69336.0,69329.0,0.32349338]
[1771162120913,0.07210631,69343.0,69330.0,0.001]
[1771162121123,4e-05,69344.0,69335.0,0.07211289]
[1771162121382,0.07210145,69347.0,69338.0,0.07211022]
[1771162121598,0.07210145,69347.0,69327.0,0.36744987]
[1771162121599,0.07212683,69323.0,69308.0,0.28856574]
[1771162121823,0.07212901,69321.0,69310.0,0.32356102]
[1771162122033,0.07212901,69321.0,69310.0,4e-05]
[1771162122252,0.07213163,69318.0,69310.0,4e-05]
[1771162122466,0.07213163,69318.0,69310.0,0.0001698]
[1771162122677,0.07213237,69317.0,69312.0,0.0002]
[1771162122881,0.07213415,69316.0,69312.0,0.0002]
[1771162123112,0.07213237,69317.0,69312.0,0.0002]
[1771162124369,0.07213005,69320.0,69312.0,0.0002]
[1771162124573,0.07212828,69321.0,69313.0,0.07213561]
[1771162124778,0.07212828,69321.0,69313.0,0.35348081]
[1771162124954,0.07212828,69321.0,69313.0,0.2813452]
[1771162124955,0.07212942,69320.0,69313.0,0.2813452]
[1771162125156,0.07212829,69321.0,69313.0,0.35348153]
[1771162125368,0.02411819,69328.0,69313.0,0.2813452]
[1771162125544,0.07212583,69324.0,69315.0,0.07213362]
[1771162126103,0.31260608,69328.0,69313.0,0.2813452]
[1771162126104,0.07220295,69328.0,69313.0,0.2813452]
[1771162126417,0.07212383,69326.0,69318.0,0.2813452]
[1771162126560,0.07212226,69327.0,69318.0,0.35347644]
[1771162126765,0.07212226,69327.0,69319.0,0.07213012]
[1771162126993,8e-05,69328.0,69318.0,0.2813452]
[1771162127273,8e-05,69328.0,69322.0,0.07212668]
[1771162127611,8e-05,69328.0,69322.0,0.05402838]
[1771162128017,0.07215718,69332.0,69319.0,0.2813452]
[1771162128018,0.07215703,69332.0,69319.0,0.2813452]
[1771162128223,4e-05,69332.0,69325.0,0.07212386]
[1771162128426,4e-05,69332.0,69324.0,0.07212503]
[1771162128427,4e-05,69336.0,69324.0,4e-05]
[1771162128634,4e-05,69338.0,69334.0,0.07211426]
[1771162128838,4e-05,69338.0,69324.0,4e-05]
[1771162128839,4e-05,69344.0,69333.0,0.2813452]
[1771162129319,4e-05,69344.0,69337.0,0.07211083]
[1771162129525,4e-05,69344.0,69334.0,0.2813452]
[1771162129943,4e-05,69344.0,69335.0,0.0721131]
[1771162130147,4e-05,69344.0,69335.0,0.2813452]
[1771162130356,0.02407819,69346.0,69334.0,0.0001298]
[1771162130357,4e-05,69346.0,69336.0,0.2813452]
[1771162130563,4e-05,69346.0,69341.0,0.35345255]
[1771162130770,4e-05,69346.0,69341.0,0.2813452]
[1771162131199,0.02403819,69359.0,69343.0,0.07210531]
[1771162131410,0.07209688,69352.0,69342.0,0.2813452]
[1771162131613,0.07209602,69352.0,69342.0,0.35345111]
[1771162131787,0.07209476,69354.0,69344.0,0.07210426]
[1771162131990,0.07209588,69353.0,69343.0,0.07210451]
[1771162132196,0.07208869,69359.0,69342.0,0.07210608]
[1771162132406,4e-05,69360.0,69347.0,0.2813452]
[1771162132615,4e-05,69360.0,69348.0,0.35344462]
[1771162132817,4e-05,69360.0,69350.0,0.07209747]
[1771162133125,4e-05,69360.0,69351.0,0.07209617]
[1771162133376,4e-05,69360.0,69349.0,0.34492]
[1771162133377,4e-05,69354.0,69352.0,0.35340117]
[1771162133577,4e-05,69354.0,69349.0,0.34492]
[1771162133795,8e-05,69360.0,69350.0,0.35344221]
[1771162134013,4e-05,69362.0,69353.0,0.07209439]
[1771162134224,4e-05,69362.0,69355.0,0.07209271]
[1771162134638,4e-05,69362.0,69354.0,0.2813452]
[1771162134639,4e-05,69362.0,69354.0,0.35343875]
[1771162134972,4e-05,69362.0,69300.0,0.03]
[1771162134974,0.02403819,69361.0,69300.0,0.03]
[1771162135173,0.02403819,69361.0,69270.0,0.33481048]
[1771162135174,0.02403819,69322.0,69302.0,0.29467833]
[1771162135377,0.02403819,69321.0,69312.0,0.0003298]
[1771162135679,4e-05,69328.0,69294.0,0.28862403]
[1771162135680,0.07213862,69311.0,69309.0,0.32048]
[1771162135879,0.07213654,69313.0,69309.0,0.32048]
[1771162135880,0.28851908,69320.0,69310.0,0.00024522]
[1771162136231,0.07213735,69313.0,69311.0,0.34496]
[1771162136430,0.07213527,69315.0,69311.0,0.34496]
[1771162136645,0.0721373,69313.0,69311.0,0.34496]
[1771162136838,0.07213758,69312.0,69311.0,0.34496]
[1771162137244,0.07213758,69312.0,69310.0,0.00024522]
[1771162137245,0.07213862,69311.0,69310.0,0.00024522]
[1771162137459,0.0719334,69311.0,69310.0,0.345]
[1771162137869,0.43272316,69329.0,69300.0,0.07214943]
[1771162137870,0.07214366,69307.0,69306.0,0.34496]
[1771162138003,0.07214366,69307.0,69300.0,0.09236]
[1771162138213,0.07214366,69307.0,69290.0,0.02268191]
[1771162138214,0.07214683,69305.0,69301.0,0.16676]
[1771162138427,0.07214543,69305.0,69301.0,0.16676]
[1771162138638,0.07214382,69306.0,69301.0,0.16676]
[1771162138842,0.00012982,69307.0,69301.0,0.16676]
[1771162139969,0.00012982,69307.0,69301.0,0.08619697]
[1771162140182,0.00012982,69307.0,69299.0,0.09236]
[1771162140183,0.07214825,69302.0,69299.0,0.09236]
[1771162140401,0.00012982,69307.0,69300.0,0.33456]
[1771162140402,0.0722727,69307.0,69300.0,0.33456]
[1771162140667,0.07214496,69305.0,69300.0,0.33456]
[1771162140965,0.07214474,69306.0,69301.0,0.34496]
[1771162141185,0.07227468,69307.0,69301.0,0.34496]
[1771162141345,0.00012982,69307.0,69301.0,0.34496]
[1771162141556,0.07214382,69306.0,69301.0,0.34496]
[1771162141956,0.07214622,69304.0,69301.0,0.34496]
[1771162142336,0.00012982,69307.0,69301.0,0.34496]
[1771162142542,0.0721439,69306.0,69301.0,0.34496]
[1771162142738,0.0721439,69306.0,69297.0,0.29468633]
[1771162142739,0.0721439,69306.0,69302.0,0.34496]
[1771162143705,0.00012982,69307.0,69302.0,0.34496]
[1771162143906,0.07214486,69305.0,69302.0,0.34496]
[1771162144204,0.07214382,69306.0,69294.0,0.07215557]
[1771162144428,0.07227311,69307.0,69204.0,0.0030324]
[1771162144429,0.07336393,69292.0,69204.0,0.0030324]
[1771162144657,0.07336393,69292.0,69170.0,0.3316767]
[1771162144658,0.02215751,69296.0,69178.0,0.2891076]
[1771162144659,0.00016845,69207.0,69178.0,0.2891076]
[1771162144853,0.43756832,69241.0,69170.0,0.0429967]
[1771162144854,0.02420664,69194.0,69170.0,0.02946334]
[1771162145075,0.01171278,69194.0,69172.0,0.2514274]
[1771162145309,0.069,69218.0,69178.0,0.27640554]
[1771162145310,0.07223867,69215.0,69178.0,0.27640554]
[1771162145516,0.09236,69221.0,69179.0,0.2297558]
[1771162145517,0.02447999,69209.0,69179.0,0.2297558]
[1771162145724,0.02447999,69209.0,69170.0,0.00779174]
[1771162145725,0.07224829,69206.0,69175.0,0.25524]
[1771162145901,0.00012951,69206.0,69175.0,0.25524]
[1771162146101,0.09236,69221.0,69188.0,0.29640554]
[1771162146334,0.02403819,69220.0,69196.0,0.29640554]
[1771162146537,0.00429902,69219.0,69197.0,0.2297558]
[1771162146741,0.00429902,69219.0,69204.0,0.07224984]
[1771162146942,0.00429902,69219.0,69209.0,0.07224418]
[1771162147152,0.00429902,69219.0,69206.0,0.29640554]
[1771162147356,0.00429902,69219.0,69197.0,0.16]
[1771162147561,0.00429902,69219.0,69199.0,0.21639927]
[1771162147738,0.02019896,69220.0,69199.0,0.21639927]
[1771162147948,0.072242,69212.0,69199.0,0.21639927]
[1771162148151,0.07223933,69215.0,69199.0,0.216831]
[1771162148302,8e-05,69200.0,69199.0,0.216751]
[1771162148501,4e-05,69206.0,69196.0,0.001]
[1771162148702,4e-05,69204.0,69193.0,0.19462763]
[1771162148905,4e-05,69204.0,69193.0,0.2668886]
[1771162149282,4e-05,69204.0,69193.0,0.19462763]
[1771162149504,4e-05,69208.0,69197.0,0.29630297]
[1771162149711,0.07228009,69214.0,69198.0,0.07225642]
[1771162149712,4e-05,69214.0,69198.0,0.07225642]
[1771162149936,4e-05,69214.0,69202.0,4e-05]
[1771162149937,0.07224276,69212.0,69202.0,4e-05]
[1771162150147,4e-05,69214.0,69202.0,4e-05]
[1771162150351,0.07224291,69211.0,69202.0,0.19462763]
[1771162150528,0.07228076,69214.0,69202.0,0.19462763]
[1771162150776,4e-05,69214.0,69202.0,0.19462763]
[1771162150978,4e-05,69214.0,69202.0,0.2668792]
[1771162151193,4e-05,69214.0,69202.0,0.26687976]
[1771162151403,0.07224444,69210.0,69203.0,0.19458763]
[1771162151608,4e-05,69214.0,69203.0,0.19458763]
[1771162151871,4e-05,69214.0,69202.0,4e-05]
[1771162152525,4e-05,69214.0,69194.0,4e-05]
[1771162152526,0.02403819,69213.0,69194.0,4e-05]
[1771162152725,4e-05,69204.0,69188.0,0.09248]
[1771162153136,0.07225675,69198.0,69188.0,0.09248]
[1771162153342,4e-05,69204.0,69188.0,0.09248]
[1771162153686,0.07225787,69197.0,69188.0,0.09248]
[1771162153895,4e-05,69204.0,69193.0,0.19458763]
[1771162154101,0.00043315,69213.0,69201.0,0.0722531]
[1771162154303,0.00043315,69213.0,69202.0,0.19458763]
[1771162154503,0.00043315,69213.0,69197.0,0.19458763]
[1771162155596,0.00043315,69213.0,69197.0,0.26684489]
[1771162155945,0.0726742,69213.0,69198.0,0.07225582]
[1771162156104,0.00043315,69213.0,69202.0,0.07225177]
[1771162156314,0.00043315,69213.0,69202.0,0.07225221]
[1771162156519,0.07224346,69211.0,69197.0,0.90824229]
[1771162157060,4e-05,69210.0,69200.0,4e-05]
[1771162157846,0.07228456,69210.0,69200.0,4e-05]
[1771162158162,4e-05,69210.0,69201.0,0.19458763]
[1771162158595,0.04554865,69206.0,69194.0,4e-05]
[1771162158811,0.04554865,69206.0,69180.0,0.07231502]
[1771162158812,0.07226164,69193.0,69180.0,0.07231502]
[1771162159011,0.07225955,69195.0,69181.0,0.07227405]
[1771162159267,0.07225968,69195.0,69182.0,0.07227241]
[1771162159467,0.07222068,69194.0,69182.0,0.07227241]
[1771162159604,4e-05,69202.0,69183.0,0.07227195]
[1771162159809,4e-05,69202.0,69197.0,0.0002]
[1771162160246,0.07225642,69198.0,69197.0,0.0002]
[1771162160657,4e-05,69202.0,69198.0,0.19458763]
[1771162160936,0.043797,69221.0,69198.0,0.19346763]
[1771162161142,0.043797,69221.0,69197.0,0.0002]
[1771162161345,0.07224686,69208.0,69198.0,0.19346763]
[1771162161541,1.44457742,69225.0,69192.0,4e-05]
[1771162161750,4e-05,69204.0,69192.0,4e-05]
[1771162162136,0.07225289,69202.0,69192.0,4e-05]
[1771162162359,4e-05,69204.0,69192.0,4e-05]
[1771162162561,4e-05,69204.0,69188.0,4e-05]
[1771162162562,4e-05,69200.0,69188.0,4e-05]
[1771162163165,4e-05,69194.0,69188.0,4e-05]
[1771162163363,0.072282,69212.0,69200.0,8e-05]
[1771162163597,0.072242,69212.0,69202.0,4e-05]
[1771162163811,0.02296711,69226.0,69202.0,4e-05]
[1771162163812,0.0004,69226.0,69204.0,4e-05]
[1771162164026,0.0004,69226.0,69215.0,0.07223807]
[1771162164027,0.07222727,69226.0,69215.0,0.07223807]
[1771162164260,0.05425258,69230.0,69210.0,0.07228298]
[1771162164457,0.07222994,69224.0,69213.0,0.07224043]
[1771162164875,0.07223181,69222.0,69210.0,4e-05]
[1771162165075,0.05425258,69230.0,69210.0,4e-05]
[1771162165279,0.07222866,69225.0,69213.0,0.07223976]
[1771162165692,4e-05,69230.0,69210.0,0.28901327]
[1771162165915,4e-05,69230.0,69210.0,4e-05]
[1771162165916,0.072232,69222.0,69210.0,4e-05]
[1771162166123,0.07222907,69225.0,69213.0,0.07224064]
[1771162166329,4e-05,69230.0,69213.0,0.07224064]
[1771162166533,4e-05,69230.0,69215.0,0.07223838]
[1771162166534,0.07222711,69227.0,69215.0,0.07223838]
[1771162166729,0.07222735,69226.0,69215.0,0.07223838]
[1771162166963,0.07222637,69227.0,69216.0,0.07223751]
[1771162167168,0.07222637,69227.0,69217.0,0.07223623]
[1771162167489,0.07222428,69229.0,69213.0,0.28895959]
[1771162167641,0.07222428,69229.0,69211.0,0.30782539]
[1771162167642,0.07222672,69227.0,69216.0,0.07223733]
[1771162168016,0.07222672,69227.0,69217.0,0.07223627]
[1771162168218,0.07222406,69229.0,69217.0,0.07223627]
[1771162168219,0.07222456,69229.0,69217.0,0.07223658]
[1771162168424,0.07222608,69228.0,69217.0,0.07223658]
[1771162168902,0.07222608,69228.0,69218.0,0.07223543]
[1771162169323,0.07222511,69228.0,69217.0,0.07223658]
[1771162169551,0.07222511,69228.0,69218.0,0.07223545]
[1771162169990,0.0004,69227.0,69219.0,0.07223366]
[1771162170193,0.07226326,69230.0,69210.0,4e-05]
[1771162170194,4e-05,69230.0,69227.0,0.0722261]
[1771162170394,4e-05,69230.0,69227.0,0.07222571]
[1771162170808,4e-05,69230.0,69227.0,0.07222553]
[1771162171255,4e-05,69230.0,69228.0,0.07222507]
[1771162171461,0.00016987,69230.0,69228.0,0.07222507]
[1771162171865,0.00016987,69230.0,69221.0,0.30780299]
[1771162172099,0.00016987,69230.0,69211.0,0.30780299]
[1771162172313,0.00016987,69230.0,69220.0,0.07223291]
[1771162172749,0.07239314,69230.0,69220.0,0.07223291]
[1771162172974,0.07239314,69230.0,69210.0,0.28900723]
[1771162172975,0.00016987,69230.0,69223.0,0.07222968]
[1771162173203,0.00016987,69230.0,69187.0,1.44534279]
[1771162173204,0.00016987,69230.0,69131.0,0.04509815]
[1771162173205,4e-05,69210.0,69131.0,0.04509815]
[1771162173426,0.876809,69162.0,69139.0,0.30780299]
[1771162173640,0.01799717,69177.0,69139.0,0.30780299]
[1771162173861,0.01799717,69177.0,69135.0,0.02266813]
[1771162173862,0.01799717,69177.0,69141.0,0.30780299]
[1771162174078,0.31166204,69192.0,69157.0,0.30780299]
[1771162174352,0.94908969,69175.0,69160.0,0.07229557]
[1771162174557,0.876809,69175.0,69159.0,0.38010002]
[1771162174768,0.07228779,69168.0,69160.0,0.00043315]
[1771162174974,0.876809,69172.0,69160.0,0.00043315]
[1771162175206,0.07228378,69172.0,69161.0,0.06908589]
[1771162175411,0.0722858,69170.0,69161.0,0.06908589]
[1771162175840,0.0722858,69170.0,68969.0,67.3128529]
[1771162175841,0.02256711,69185.0,69133.0,0.02266813]
[1771162176078,0.02256711,69185.0,69131.0,0.04509815]
[1771162176079,0.94910616,69160.0,69149.0,0.07230657]
[1771162176290,0.07229716,69160.0,69147.0,0.07230943]
[1771162176498,0.07229717,69159.0,69148.0,0.07230799]
[1771162177138,0.07225717,69159.0,69148.0,0.07230799]
[1771162177345,0.00043261,69159.0,69145.0,0.30780299]
[1771162177555,0.00043261,69159.0,69149.0,0.07230674]
[1771162177768,0.00043261,69159.0,69149.0,0.07230673]
[1771162177980,0.07229557,69161.0,69151.0,0.07230553]
[1771162178198,4e-05,69170.0,69151.0,0.00043261]
[1771162178417,0.07229516,69161.0,69151.0,0.00043261]
[1771162178620,0.07229516,69161.0,69151.0,0.07273802]
[1771162178959,0.07229113,69165.0,69155.0,0.07229933]
[1771162179157,4e-05,69166.0,69155.0,0.07229933]
[1771162179389,4e-05,69166.0,69155.0,0.30780299]
[1771162179789,8e-05,69170.0,69161.0,0.07229431]
[1771162179950,8e-05,69170.0,69161.0,0.07229475]
[1771162180160,8e-05,69170.0,69159.0,0.3800833]
[1771162180360,8e-05,69170.0,69159.0,0.30778699]
[1771162180728,0.07228923,69167.0,69159.0,0.30778699]
[1771162180877,8e-05,69170.0,69159.0,0.30778699]
[1771162181077,8e-05,69170.0,69158.0,4e-05]
[1771162181078,0.07228671,69169.0,69158.0,4e-05]
[1771162181450,8e-05,69170.0,69154.0,4e-05]
[1771162181451,0.0722962,69160.0,69154.0,4e-05]
[1771162181575,4e-05,69166.0,69154.0,0.0723418]
[1771162181778,8e-05,69170.0,69154.0,4e-05]
[1771162181974,8e-05,69170.0,69165.0,0.07229005]
[1771162182166,8e-05,69170.0,69162.0,0.07229316]
[1771162182368,4e-05,69172.0,69161.0,0.30778699]
[1771162182573,4e-05,69172.0,69160.0,4e-05]
[1771162182574,4e-05,69176.0,69163.0,0.38006297]
[1771162182769,4e-05,69176.0,69164.0,0.07229194]
[1771162182970,0.07232183,69174.0,69165.0,0.07229052]
[1771162183194,0.07232183,69174.0,69160.0,8e-05]
[1771162183195,0.0005,69165.0,69156.0,1e-08]
[1771162183606,0.0005,69165.0,69156.0,0.07230009]